fUSD/lending_fUSD_20250304
["ID","MTS","AMOUNT","RATE_DAILY","PERIOD"]
[355305280,1741061442227,-589.69420793,0.00012698,2]
[355305283,1741061442243,-618.45,0.00012698,2]
[355305285,1741061442260,-441.95580221,0.00012698,2]
[355305287,1741061442277,-500.0,0.00012698,2]
[355305290,1741061442294,-934.98556962,0.00012698,2]
[355305292,1741061442310,-893.11,0.00012698,2]
[355305294,1741061442326,-916.25,0.00012698,2]
[355305297,1741061442343,-2037.12,0.00012698,2]
[355305299,1741061442359,-300.21789855,0.00012698,2]
[355305301,1741061442375,-560.8,0.00012698,2]
[355305304,1741061442391,-500.0,0.00012698,2]
[355305306,1741061442411,-745.79,0.00012698,2]
[355305308,1741061442428,-500.0,0.00012698,2]
[355305311,1741061442445,-500.0,0.00012698,2]
[355305313,1741061442462,-713.83,0.00012698,2]
[355305316,1741061442481,-500.0,0.00012698,2]
[355305318,1741061442496,-500.0,0.00012698,2]
[355305320,1741061442514,-500.0,0.00012698,2]
[355305323,1741061442530,-512.71500938,0.00012698,2]
[355305325,1741061442547,-256.75994957,0.00012698,2]
[355305328,1741061442563,-500.0,0.00012698,2]
[355305330,1741061442580,-554.65414015,0.00012698,2]
[355305333,1741061442596,-500.0,0.00012698,2]
[355305335,1741061442612,-500.0,0.00012698,2]
[355305337,1741061442628,-500.0,0.00012698,2]
[355305340,1741061442645,-500.0,0.00012698,2]
[355305342,1741061442661,-500.0,0.00012698,2]
[355305344,1741061442676,-500.0,0.00012698,2]
[355305347,1741061442693,-2614.17,0.00012698,2]
[355305349,1741061442709,-874.66,0.00012698,2]
[355305351,1741061442726,-500.0,0.00012698,2]
[355305353,1741061442742,-2636.89,0.00012698,2]
[355305356,1741061442757,-500.0,0.00012698,2]
[355305358,1741061442774,-19844.42783074,0.00012698,2]
[355305619,1741061445647,-3875.13,0.00012696,2]
[355305621,1741061445660,-500.0,0.00012696,2]
[355305623,1741061445670,-500.0,0.00012696,2]
[355305625,1741061445680,-298.16604101,0.00012697,2]
[355305627,1741061445689,-500.0,0.00012697,2]
[355305629,1741061445699,-493.07442462,0.00012697,2]
[355305631,1741061445708,-500.0,0.00012697,2]
[355305633,1741061445718,-500.0,0.00012697,2]
[355305635,1741061445728,-502.48667064,0.00012697,2]
[355305637,1741061445737,-500.0,0.00012697,2]
[355305639,1741061445747,-500.0,0.00012697,2]
[355305641,1741061445756,-500.0,0.00012697,2]
[355305643,1741061445766,-6935.33216926,0.00012698,2]
[355305645,1741061445775,-658.72,0.00012698,2]
[355305647,1741061445784,-1376.02,0.00012698,2]
[355305649,1741061445793,-1074.23,0.00012698,2]
[355305651,1741061445803,-1971.83,0.00012698,2]
[355305653,1741061445812,-500.0,0.00012698,2]
[355305655,1741061445822,-3991.61,0.00012698,2]
[355305657,1741061445832,-500.0,0.00012698,2]
[355305659,1741061445841,-30768.01,0.00012698,2]
[355305661,1741061445851,-811.66,0.00012698,2]
[355305663,1741061445860,-3716.6,0.00012698,2]
[355305665,1741061445871,-190.52325107,0.00012698,2]
[355305667,1741061445881,-760.27,0.00012698,2]
[355305669,1741061445891,-500.0,0.00012698,2]
[355305671,1741061445901,-1704.87,0.00012698,2]
[355305674,1741061445912,-692.77,0.00012698,2]
[355305675,1741061445922,-5356.17,0.00012698,2]
[355305678,1741061445932,-500.0,0.00012698,2]
[355305680,1741061445942,-1790.44,0.00012698,2]
[355305682,1741061445951,-500.0,0.00012698,2]
[355305683,1741061445961,-5583.02,0.00012698,2]
[355305686,1741061445971,-500.0,0.00012698,2]
[355305687,1741061445981,-500.0,0.00012698,2]
[355305690,1741061445992,-500.0,0.00012698,2]
[355305692,1741061446002,-2842.98,0.00012698,2]
[355305694,1741061446012,-500.0,0.00012698,2]
[355305696,1741061446022,-500.0,0.00012698,2]
[355305697,1741061446031,-691.85,0.00012698,2]
[355305699,1741061446041,-3251.91,0.00012698,2]
[355305701,1741061446050,-752.33,0.00012698,2]
[355305703,1741061446061,-6526.05413926,0.00012698,2]
[355305706,1741061446071,-2487.38,0.00012698,2]
[355305708,1741061446081,-500.0,0.00012698,2]
[355305710,1741061446091,-500.0,0.00012698,2]
[355305712,1741061446100,-507.31721852,0.00012699,2]
[355305714,1741061446110,-1196.95,0.00012699,2]
[355305716,1741061446119,-500.0,0.00012699,2]
[355305718,1741061446129,-1569.33,0.00012699,2]
[355305720,1741061446139,-1842.6,0.00012699,2]
[355305722,1741061446148,-1070.81,0.00012699,2]
[355305724,1741061446164,-500.0,0.00012699,2]
[355305726,1741061446184,-500.0,0.00012699,2]
[355305728,1741061446195,-1298.62,0.00012699,2]
[355305730,1741061446207,-500.0,0.00012699,2]
[355305732,1741061446217,-1667.43,0.00012699,2]
[355305734,1741061446228,-1060.85,0.00012699,2]
[355305736,1741061446238,-2291.73,0.00012699,2]
[355305738,1741061446250,-1891.88,0.00012699,2]
[355305740,1741061446264,-1824.72,0.00012699,2]
[355305742,1741061446277,-1341.85,0.00012699,2]
[355305744,1741061446288,-2037.99,0.00012699,2]
[355305746,1741061446297,-1105.75,0.00012699,2]
[355305748,1741061446307,-500.0,0.00012699,2]
[355305750,1741061446318,-1460.82,0.00012699,2]
[355305752,1741061446327,-1575.62,0.00012699,2]
[355305754,1741061446337,-2221.64,0.00012699,2]
[355305756,1741061446346,-500.0,0.00012699,2]
[355305758,1741061446356,-1053.2,0.00012699,2]
[355305760,1741061446366,-1179.28,0.00012699,2]
[355305762,1741061446376,-939.29,0.00012699,2]
[355305764,1741061446385,-636.98,0.00012699,2]
[355305766,1741061446396,-1666.16,0.00012699,2]
[355305768,1741061446410,-2261.31,0.00012699,2]
[355305770,1741061446420,-678.41,0.00012699,2]
[355305772,1741061446430,-21026.36,0.00012699,2]
[355305774,1741061446440,-1411.83,0.00012699,2]
[355305776,1741061446450,-1599.38,0.00012699,2]
[355305778,1741061446459,-4091.81,0.00012699,2]
[355305780,1741061446469,-500.0,0.00012699,2]
[355305782,1741061446479,-1177.92,0.00012699,2]
[355305784,1741061446488,-500.0,0.00012699,2]
[355305786,1741061446497,-151.0,0.000127,2]
[355305788,1741061446506,-151.0,0.000127,2]
[355305790,1741061446515,-151.0,0.000127,2]
[355305792,1741061446525,-151.0,0.000127,2]
[355305794,1741061446534,-151.0,0.000127,2]
[355305796,1741061446543,-151.0,0.000127,2]
[355305798,1741061446556,-282.26004858,0.00012718,2]
[355305800,1741061446566,-151.0,0.00012721,2]
[355305802,1741061446576,-151.0,0.00012721,2]
[355305804,1741061446585,-150.0,0.00012725,2]
[355305806,1741061446595,-934.98556962,0.00012732,2]
[355305808,1741061446605,-6526.05413926,0.00012732,2]
[355305810,1741061446615,-921.88941541,0.00012737,2]
[355305812,1741061446625,-150.0,0.00012739,2]
[355305814,1741061446635,-593.0,0.0001274,2]
[355305816,1741061446644,-433.40598907,0.0001276,2]
[355305818,1741061446654,-150.0,0.00012763,2]
[355305820,1741061446663,-150.0,0.00012763,2]
[355305822,1741061446673,-934.98556962,0.00012765,2]
[355305824,1741061446682,-6526.05413926,0.00012765,2]
[355305826,1741061446692,-934.98556962,0.00012799,2]
[355305828,1741061446702,-6526.05413926,0.00012799,2]
[355305830,1741061446711,-151.0,0.000128,2]
[355305832,1741061446720,-151.0,0.000128,2]
[355305834,1741061446730,-150.0,0.00012803,2]
[355305836,1741061446740,-156.77,0.00012805,2]
[355305838,1741061446751,-180.37124486,0.00012809,2]
[355305840,1741061446760,-223.19204293,0.00012812,2]
[355305842,1741061446770,-1000.0,0.00012813,2]
[355305844,1741061446780,-150.0,0.00012832,2]
[355305846,1741061446790,-934.98556962,0.00012833,2]
[355305848,1741061446799,-6526.05413926,0.00012833,2]
[355305850,1741061446809,-150.0,0.0001284,2]
[355305852,1741061446819,-553.28504,0.0001284,2]
[355305854,1741061446828,-150.0,0.00012846,2]
[355305856,1741061446838,-152.33001963,0.00012861,2]
[355305858,1741061446848,-934.98556962,0.00012866,2]
[355305860,1741061446857,-6526.05413926,0.00012866,2]
[355305862,1741061446867,-169.4599276,0.0001287,2]
[355305864,1741061446876,-150.0,0.00012873,2]
[355305866,1741061446887,-2031.0,0.00012875,2]
[355305868,1741061446896,-1277.0,0.00012875,2]
[355305870,1741061446908,-150.0,0.00012875,2]
[355305872,1741061446917,-571.0,0.00012875,2]
[355305874,1741061446927,-1542.0,0.00012875,2]
[355305876,1741061446938,-640.0,0.00012875,2]
[355305878,1741061446948,-786.0,0.00012875,2]
[355305880,1741061446957,-1269.0,0.00012875,2]
[355305882,1741061446966,-907.0,0.00012875,2]
[355305884,1741061446976,-1427.0,0.00012875,2]
[355305886,1741061446985,-541.0,0.00012875,2]
[355305888,1741061446995,-4136.467,0.00012875,2]
[355305890,1741061447004,-150.0,0.00012876,2]
[355305892,1741061447013,-3104.664,0.00012881,2]
[355305894,1741061447022,-182.801,0.00012881,2]
[355305896,1741061447032,-150.0,0.00012896,2]
[355305898,1741061447041,-151.0,0.000129,2]
[355305900,1741061447050,-151.0,0.000129,2]
[355305902,1741061447060,-934.98556962,0.000129,2]
[355305904,1741061447069,-1871.58796148,0.000129,2]
[355305906,1741061447079,-6526.05413926,0.000129,2]
[355305908,1741061447089,-200.0,0.00012908,2]
[355305910,1741061447099,-200.0,0.00012908,2]
[355305912,1741061447108,-150.0,0.00012908,2]
[355305914,1741061447118,-200.0,0.00012908,2]
[355305916,1741061447127,-150.0,0.00012912,2]
[355305918,1741061447137,-150.0,0.00012919,2]
[355305920,1741061447146,-187.17406844,0.00012919,2]
[355305922,1741061447157,-150.0,0.00012925,2]
[355305924,1741061447167,-150.0,0.00012936,2]
[355305926,1741061447176,-150.0,0.00012942,2]
[355305928,1741061447186,-150.0,0.00012952,2]
[355305930,1741061447195,-430.52991219,0.00012956,2]
[355305932,1741061447205,-201.095,0.00012956,2]
[355305934,1741061447214,-3929.0,0.00012956,2]
[355305936,1741061447223,-1012.0,0.00012956,2]
[355305938,1741061447234,-224.82360241,0.00012961,2]
[355305940,1741061447243,-150.83784909,0.00012968,10]
[355305942,1741061447252,-1000.0,0.0001297,2]
[355305944,1741061447262,-1000.0,0.0001297,2]
[355305946,1741061447271,-1432.15617306,0.0001297,2]
[355305948,1741061447280,-1236.59,0.0001297,2]
[355305950,1741061447289,-2326.21,0.0001297,2]
[355305952,1741061447299,-713.33,0.0001297,2]
[355305954,1741061447308,-1666.0,0.0001297,2]
[355305956,1741061447317,-791.722134,0.0001297,2]
[355305958,1741061447326,-3543.96,0.0001297,2]
[355305960,1741061447335,-2139.39,0.0001297,2]
[355305962,1741061447345,-2822.65,0.0001297,2]
[355305964,1741061447354,-1250.328008,0.0001297,2]
[355305966,1741061447363,-2228.64,0.0001297,2]
[355305968,1741061447372,-151.0,0.0001297,2]
[355305970,1741061447382,-525.97,0.0001297,2]
[355305972,1741061447392,-2215.94,0.0001297,2]
[355305974,1741061447404,-3202.61,0.0001297,2]
[355305976,1741061447413,-1506.54,0.0001297,2]
[355305978,1741061447423,-500.0,0.0001297,2]
[355305980,1741061447432,-151.97789,0.0001297,2]
[355305982,1741061447442,-1683.86,0.0001297,2]
[355305984,1741061447451,-1844.48,0.0001297,2]
[355305986,1741061447461,-153.251169,0.0001297,2]
[355305988,1741061447471,-3176.38,0.0001297,2]
[355305990,1741061447480,-6451.051601,0.0001297,2]
[355305992,1741061447489,-1499.74,0.0001297,2]
[355305994,1741061447499,-230.95048,0.0001297,2]
[355305996,1741061447508,-2399.73,0.0001297,2]
[355305998,1741061447518,-6451.051601,0.0001297,2]
[355306000,1741061447527,-230.95048,0.0001297,2]
[355306002,1741061447536,-1304.19,0.0001297,2]
[355306004,1741061447546,-151.0,0.0001297,2]
[355306006,1741061447555,-500.0,0.0001297,2]
[355306008,1741061447565,-2039.88,0.0001297,2]
[355306010,1741061447575,-500.0,0.0001297,2]
[355306012,1741061447584,-151.0,0.0001297,2]
[355306014,1741061447594,-1294.62,0.0001297,2]
[355306016,1741061447603,-6863.55,0.0001297,2]
[355306018,1741061447613,-1587.02,0.0001297,2]
[355306020,1741061447622,-2450.89,0.0001297,2]
[355306022,1741061447632,-151.0,0.0001297,2]
[355306024,1741061447643,-500.0,0.0001297,2]
[355306027,1741061447654,-2570.14,0.0001297,2]
[355306029,1741061447664,-1950.22,0.0001297,2]
[355306030,1741061447674,-1747.31,0.0001297,2]
[355306032,1741061447684,-639.34,0.0001297,2]
[355306034,1741061447694,-2368.39,0.0001297,2]
[355306036,1741061447704,-17121.69,0.0001297,2]
[355306038,1741061447713,-1240.03,0.0001297,2]
[355306040,1741061447723,-500.0,0.0001297,2]
[355306042,1741061447733,-1716.61,0.0001297,2]
[355306044,1741061447742,-151.0,0.0001297,2]
[355306046,1741061447752,-2749.71,0.0001297,2]
[355306048,1741061447761,-151.0,0.0001297,2]
[355306050,1741061447771,-151.0,0.0001297,2]
[355306052,1741061447781,-230.666678,0.0001297,2]
[355306054,1741061447791,-245.733579,0.0001297,2]
[355306056,1741061447800,-500.0,0.0001297,2]
[355306058,1741061447810,-156.214572,0.0001297,2]
[355306060,1741061447820,-2445.29,0.0001297,2]
[355306062,1741061447830,-230.666678,0.0001297,2]
[355306065,1741061447840,-500.0,0.0001297,2]
[355306067,1741061447850,-2392.04,0.0001297,2]
[355306069,1741061447860,-1590.29,0.0001297,2]
[355306070,1741061447869,-500.0,0.0001297,2]
[355306072,1741061447879,-151.0,0.0001297,2]
[355306074,1741061447889,-151.0,0.0001297,2]
[355306076,1741061447899,-1943.02,0.0001297,2]
[355306078,1741061447909,-1584.35,0.0001297,2]
[355306080,1741061447919,-151.0,0.0001297,2]
[355306082,1741061447930,-3912.94,0.0001297,2]
[355306084,1741061447941,-1343.41,0.0001297,2]
[355306086,1741061447956,-1345.56,0.0001297,2]
[355306089,1741061447967,-2228.49,0.0001297,2]
[355306091,1741061447977,-500.0,0.0001297,2]
[355306093,1741061447987,-771.51,0.0001297,2]
[355306095,1741061447997,-3207.84,0.0001297,2]
[355306097,1741061448007,-500.0,0.0001297,2]
[355306098,1741061448017,-500.0,0.0001297,2]
[355306100,1741061448027,-1647.54,0.0001297,2]
[355306102,1741061448037,-500.0,0.0001297,2]
[355306104,1741061448047,-691.41,0.0001297,2]
[355306106,1741061448057,-1129.2,0.0001297,2]
[355306108,1741061448068,-500.0,0.0001297,2]
[355306110,1741061448078,-3875.13,0.0001297,2]
[355306113,1741061448089,-500.0,0.0001297,2]
[355306115,1741061448099,-572.04,0.00012971,2]
[355306117,1741061448109,-1227.2,0.00012971,2]
[355306119,1741061448119,-522.12437729,0.00012971,2]
[355306121,1741061448129,-905.91,0.00012971,2]
[355306123,1741061448140,-1400.07,0.00012971,2]
[355306125,1741061448150,-500.0,0.00012971,2]
[355306127,1741061448163,-500.0,0.00012971,2]
[355306129,1741061448174,-578.64,0.00012971,2]
[355306131,1741061448185,-500.0,0.00012971,2]
[355306133,1741061448195,-958.88,0.00012971,2]
[355306135,1741061448205,-593.92,0.00012971,2]
[355306137,1741061448216,-511.78867461,0.00012971,2]
[355306139,1741061448226,-500.0,0.00012971,2]
[355306141,1741061448236,-1290.29,0.00012971,2]
[355306143,1741061448246,-670.74,0.00012971,2]
[355306145,1741061448257,-540.81,0.00012971,2]
[355306147,1741061448267,-509.47769251,0.00012971,2]
[355306149,1741061448276,-500.0,0.00012971,2]
[355306151,1741061448286,-1398.31,0.00012971,2]
[355306153,1741061448296,-500.0,0.00012971,2]
[355306155,1741061448305,-508.01700034,0.00012971,2]
[355306157,1741061448315,-1238.74,0.00012971,2]
[355306159,1741061448324,-1172.24,0.00012971,2]
[355306161,1741061448335,-1038.29,0.00012971,2]
[355306163,1741061448350,-2380.73,0.00012971,2]
[355306165,1741061448363,-1900.54,0.00012971,2]
[355306167,1741061448376,-672.24,0.00012971,2]
[355306169,1741061448387,-542.11,0.00012971,2]
[355306171,1741061448406,-600.1,0.00012971,2]
[355306173,1741061448417,-1164.36,0.00012971,2]
[355306175,1741061448430,-500.0,0.00012971,2]
[355306177,1741061448443,-500.0,0.00012971,2]
[355306179,1741061448455,-375.13898413,0.00012971,2]
[355306181,1741061448465,-892.19,0.00012971,2]
[355306183,1741061448475,-500.0,0.00012971,2]
[355306185,1741061448486,-500.0,0.00012971,2]
[355306186,1741061448496,-500.0,0.00012971,2]
[355306188,1741061448506,-500.0,0.00012971,2]
[355306192,1741061448737,-1232.26,0.00012971,2]
[355306194,1741061448747,-400.4825409,0.00012971,2]
[355306196,1741061448756,-500.0,0.00012971,2]
[355306198,1741061448766,-539.85,0.00012971,2]
[355306200,1741061448775,-388.09440526,0.00012971,2]
[355306202,1741061448786,-513.56485324,0.00012971,2]
[355306204,1741061448795,-500.0,0.00012971,2]
[355306206,1741061448805,-749.72,0.00012971,2]
[355306208,1741061448814,-504.80623299,0.00012971,2]
[355306210,1741061448824,-1342.08,0.00012971,2]
[355306212,1741061448833,-500.0,0.00012971,2]
[355306214,1741061448843,-500.0,0.00012971,2]
[355306216,1741061448852,-1212.72,0.00012971,2]
[355306218,1741061448862,-703.84,0.00012971,2]
[355306220,1741061448871,-698.61,0.00012971,2]
[355306222,1741061448881,-935.43,0.00012971,2]
[355306223,1741061448891,-717.19,0.00012971,2]
[355306225,1741061448908,-955.47,0.00012971,2]
[355306227,1741061448917,-1326.35,0.00012971,2]
[355306229,1741061448927,-769.94,0.00012971,2]
[355306231,1741061448936,-1242.89,0.00012971,2]
[355306233,1741061448946,-581.45,0.00012971,2]
[355306235,1741061448955,-500.0,0.00012971,2]
[355306237,1741061448965,-500.0,0.00012971,2]
[355306239,1741061448975,-797.37,0.00012971,2]
[355306241,1741061448985,-642.32,0.00012971,2]
[355306243,1741061448994,-500.0,0.00012971,2]
[355306245,1741061449004,-1061.2,0.00012971,2]
[355306247,1741061449013,-667.21,0.00012971,2]
[355306249,1741061449023,-500.0,0.00012971,2]
[355306251,1741061449033,-592.87,0.00012971,2]
[355306253,1741061449044,-723.24,0.00012971,2]
[355306255,1741061449054,-500.0,0.00012971,2]
[355306257,1741061449063,-753.89,0.00012971,2]
[355306259,1741061449072,-938.09,0.00012971,2]
[355306261,1741061449082,-500.0,0.00012971,2]
[355306262,1741061449091,-843.18,0.00012971,2]
[355306264,1741061449101,-500.0,0.00012971,2]
[355306266,1741061449111,-712.18,0.00012971,2]
[355306268,1741061449120,-1385.19,0.00012971,2]
[355306270,1741061449129,-1178.26,0.00012971,2]
[355306272,1741061449139,-500.0,0.00012971,2]
[355306274,1741061449148,-837.2,0.00012971,2]
[355306276,1741061449158,-807.62,0.00012971,2]
[355306278,1741061449167,-1055.19,0.00012971,2]
[355306280,1741061449176,-500.0,0.00012971,2]
[355306282,1741061449186,-515.94,0.00012971,2]
[355306284,1741061449195,-865.64,0.00012971,2]
[355306286,1741061449205,-954.11,0.00012971,2]
[355306288,1741061449215,-759.24,0.00012971,2]
[355306290,1741061449225,-723.35,0.00012971,2]
[355306292,1741061449236,-894.71,0.00012971,2]
[355306294,1741061449245,-500.0,0.00012971,2]
[355306296,1741061449255,-500.0,0.00012971,2]
[355306298,1741061449265,-503.66,0.00012971,2]
[355306300,1741061449275,-1412.05,0.00012971,2]
[355306302,1741061449284,-500.0,0.00012971,2]
[355306304,1741061449294,-1001.45,0.00012971,2]
[355306306,1741061449304,-1569.91,0.00012971,2]
[355306308,1741061449314,-500.0,0.00012971,2]
[355306310,1741061449323,-1440.81,0.00012971,2]
[355306312,1741061449333,-591.04,0.00012971,2]
[355306314,1741061449344,-500.0,0.00012971,2]
[355306316,1741061449353,-500.0,0.00012971,2]
[355306318,1741061449363,-500.0,0.00012971,2]
[355306320,1741061449373,-1094.08,0.00012971,2]
[355306322,1741061449382,-633.3,0.00012971,2]
[355306324,1741061449392,-500.0,0.00012971,2]
[355306326,1741061449407,-500.0,0.00012971,2]
[355306328,1741061449416,-500.0,0.00012971,2]
[355306330,1741061449425,-500.0,0.00012971,2]
[355306332,1741061449435,-500.0,0.00012971,2]
[355306334,1741061449444,-1116.86,0.00012971,2]
[355306336,1741061449453,-151.0,0.00012971,2]
[355306338,1741061449463,-500.0,0.00012971,2]
[355306340,1741061449472,-865.73,0.00012971,2]
[355306342,1741061449481,-735.02,0.00012971,2]
[355306344,1741061449491,-1723.07,0.00012971,2]
[355306346,1741061449500,-500.0,0.00012971,2]
[355306348,1741061449509,-609.6,0.00012971,2]
[355306350,1741061449518,-500.0,0.00012971,2]
[355306352,1741061449527,-500.0,0.00012971,2]
[355306354,1741061449537,-1468.4,0.00012971,2]
[355306356,1741061449546,-504.23926594,0.00012971,2]
[355306358,1741061449556,-507.94,0.00012971,2]
[355306360,1741061449565,-536.76,0.00012971,2]
[355306362,1741061449574,-500.0,0.00012971,2]
[355306364,1741061449583,-805.0,0.00012971,2]
[355306366,1741061449592,-500.0,0.00012971,2]
[355306367,1741061449601,-1586.69,0.00012971,2]
[355306369,1741061449610,-511.49448544,0.00012971,2]
[355306371,1741061449619,-500.0,0.00012971,2]
[355306373,1741061449628,-502.26751895,0.00012971,2]
[355306375,1741061449637,-500.0,0.00012971,2]
[355306377,1741061449647,-704.12,0.00012971,2]
[355306379,1741061449658,-804.98,0.00012971,2]
[355306381,1741061449669,-504.77230787,0.00012971,2]
[355306383,1741061449678,-1193.83,0.00012971,2]
[355306385,1741061449688,-640.33431526,0.00012971,2]
[355306387,1741061449697,-151.0,0.00012971,2]
[355306389,1741061449706,-500.0,0.00012971,2]
[355306391,1741061449716,-151.0,0.00012971,2]
[355306393,1741061449725,-500.0,0.00012971,2]
[355306395,1741061449735,-670.14,0.00012971,2]
[355306397,1741061449744,-845.42,0.00012971,2]
[355306399,1741061449754,-775.84,0.00012971,2]
[355306401,1741061449764,-1271.86,0.00012971,2]
[355306403,1741061449773,-563.94,0.00012971,2]
[355306405,1741061449784,-208.588599,0.00012971,2]
[355306406,1741061449793,-151.0,0.00012971,2]
[355306408,1741061449803,-1548.01,0.00012971,2]
[355306410,1741061449813,-712.86,0.00012971,2]
[355306412,1741061449822,-661.26,0.00012971,2]
[355306414,1741061449833,-500.0,0.00012971,2]
[355306416,1741061449843,-794.12,0.00012971,2]
[355306418,1741061449853,-500.0,0.00012971,2]
[355306420,1741061449863,-500.0,0.00012971,2]
[355306422,1741061449873,-500.0,0.00012971,2]
[355306424,1741061449883,-785.01,0.00012971,2]
[355306426,1741061449893,-500.0,0.00012971,2]
[355306428,1741061449903,-813.05,0.00012971,2]
[355306430,1741061449914,-500.0,0.00012971,2]
[355306432,1741061449924,-1053.71,0.00012971,2]
[355306434,1741061449934,-497.42170741,0.00012971,2]
[355306436,1741061449944,-617.37,0.00012971,2]
[355306438,1741061449954,-258.79607334,0.00012971,2]
[355306440,1741061449964,-512.74330121,0.00012971,2]
[355306442,1741061449974,-500.0,0.00012971,2]
[355306444,1741061449984,-520.41370145,0.00012971,2]
[355306446,1741061449995,-1392.39,0.00012971,2]
[355306448,1741061450005,-151.0,0.00012971,2]
[355306450,1741061450015,-957.11,0.00012971,2]
[355306452,1741061450025,-151.0,0.00012971,2]
[355306454,1741061450035,-1337.67,0.00012971,2]
[355306456,1741061450045,-687.65,0.00012971,2]
[355306458,1741061450055,-500.0,0.00012971,2]
[355306460,1741061450066,-500.0,0.00012971,2]
[355306462,1741061450075,-1303.03,0.00012971,2]
[355306464,1741061450085,-655.78,0.00012971,2]
[355306466,1741061450095,-500.0,0.00012971,2]
[355306468,1741061450105,-500.0,0.00012971,2]
[355306470,1741061450115,-1625.49,0.00012971,2]
[355306472,1741061450125,-500.0,0.00012971,2]
[355306474,1741061450134,-500.0,0.00012971,2]
[355306476,1741061450144,-568.25,0.00012971,2]
[355306478,1741061450154,-516.07113938,0.00012971,2]
[355306480,1741061450164,-841.01,0.00012971,2]
[355306482,1741061450174,-1014.43,0.00012971,2]
[355306484,1741061450184,-151.0,0.00012971,2]
[355306486,1741061450193,-220.481592,0.00012971,2]
[355306488,1741061450203,-151.0,0.00012971,2]
[355306490,1741061450212,-733.696909,0.00012971,2]
[355306492,1741061450222,-500.0,0.00012971,2]
[355306494,1741061450231,-1227.02,0.00012971,2]
[355306496,1741061450241,-500.0,0.00012971,2]
[355306498,1741061450250,-574.633685,0.00012971,2]
[355306500,1741061450259,-733.696909,0.00012971,2]
[355306502,1741061450269,-1626.27,0.00012971,2]
[355306503,1741061450278,-500.0,0.00012971,2]
[355306505,1741061450288,-1302.96,0.00012971,2]
[355306507,1741061450297,-333.09223218,0.00012971,2]
[355306509,1741061450307,-574.633685,0.00012971,2]
[355306511,1741061450316,-505.14668258,0.00012971,2]
[355306513,1741061450325,-521.80768828,0.00012971,2]
[355306515,1741061450334,-773.87,0.00012971,2]
[355306517,1741061450343,-630.7,0.00012971,2]
[355306519,1741061450352,-702.72,0.00012971,2]
[355306521,1741061450362,-151.0,0.00012971,2]
[355306524,1741061450372,-968.82,0.00012971,2]
[355306525,1741061450382,-500.0,0.00012971,2]
[355306527,1741061450391,-486.00841331,0.00012971,2]
[355306529,1741061450403,-500.0,0.00012971,2]
[355306531,1741061450413,-521.82515351,0.00012971,2]
[355306533,1741061450422,-500.0,0.00012971,2]
[355306535,1741061450432,-500.0,0.00012971,2]
[355306537,1741061450441,-500.0,0.00012971,2]
[355306540,1741061450451,-1383.45,0.00012971,2]
[355306542,1741061450461,-1608.42,0.00012971,2]
[355306543,1741061450470,-500.0,0.00012971,2]
[355306546,1741061450481,-1560.77,0.00012971,2]
[355306548,1741061450490,-151.0,0.00012971,2]